bitfinex-derivatives/quotes_SOLF0:USTF0_20250404
["timestamp","ask_amount","ask_price","bid_price","bid_amount"]
[1743754093572,8.4617,118.2,118.19,14.78868401]
[1743754094979,8.4614,118.21,118.19,14.78868401]
[1743754095374,0.05668328,118.22,118.19,14.78868401]
[1743754095578,8.4617,118.2,118.19,14.78868401]
[1743754096177,8.4613,118.21,118.19,14.78868401]
[1743754096383,0.05668328,118.22,118.19,14.78868401]
[1743754096675,0.05668328,118.22,118.19,46.46868401]
[1743754097279,8.51758328,118.22,118.19,46.46868401]
[1743754097678,0.05668328,118.22,118.19,46.46868401]
[1743754098784,0.05668328,118.22,118.19,61.29268466]
[1743754099283,0.05668328,118.22,118.19,69.75448466]
[1743754099683,0.05668328,118.22,118.19,61.29268466]
[1743754099881,0.05668328,118.22,118.2,8.4614]
[1743754100184,0.05668328,118.22,118.21,14.82400065]
[1743754100379,0.05668328,118.22,118.21,23.28500065]
[1743754100579,0.05668328,118.22,118.21,14.82400065]
[1743754101589,0.05668328,118.22,118.2,12.9989]
[1743754101775,0.05668328,118.22,118.2,4.5376]
[1743754103284,0.05668328,118.22,118.2,12.999]
[1743754103491,0.05668328,118.22,118.2,4.5376]
[1743754104190,0.05668328,118.22,118.2,12.9989]
[1743754104790,0.05668328,118.22,118.21,8.461]
[1743754104990,6.916,118.27,118.2,4.5376]
[1743754105191,15.3731,118.27,118.21,14.82400065]
[1743754105391,15.3731,118.27,118.23,8.4591]
[1743754105691,8.4562,118.28,118.22,31.66]
[1743754105887,8.4562,118.28,118.24,8.4584]
[1743754106093,8.4562,118.28,118.25,31.66]
[1743754106388,0.05382353,118.27,118.25,31.71560752]
[1743754106592,0.05382353,118.27,118.25,40.17340752]
[1743754108092,0.05382353,118.27,118.26,8.4574]
[1743754108892,15.2392,118.32,118.28,8.4557]
[1743754109094,6.7858,118.32,118.29,31.66]
[1743754109284,8.4542,118.31,118.29,31.66]
[1743754109483,6.7858,118.32,118.29,31.66]
[1743754109691,15.2393,118.32,118.29,31.66]
[1743754110093,15.29402461,118.32,118.29,31.71525026]
[1743754110392,0.05472461,118.32,118.3,8.4542]
[1743754110585,0.05472461,118.32,118.29,46.53925091]
[1743754111292,0.05472461,118.32,118.29,31.71525026]
[1743754111492,8.50792461,118.32,118.29,40.17015026]
[1743754111691,0.05472461,118.32,118.29,40.17015026]
[1743754111892,0.05472461,118.32,118.29,46.43525026]
[1743754112094,0.05472461,118.32,118.31,8.4538]
[1743754112890,0.05472461,118.32,118.3,14.82400065]
[1743754112891,0.05472461,118.32,118.3,23.27820065]
[1743754113398,0.05472461,118.32,118.31,31.66]
[1743754115192,0.05472461,118.32,118.31,40.1138]
[1743754115688,0.05472461,118.32,118.31,31.66]
[1743754117392,0.05472461,118.32,118.29,14.77525026]
[1743754117586,0.05472461,118.32,118.29,46.55525026]
[1743754118091,8.4546,118.3,118.29,46.55525026]
[1743754120099,8.4542,118.31,118.29,46.55525026]
[1743754120491,0.05472461,118.32,118.29,14.77525026]
[1743754120693,2.2514,118.31,118.29,14.77525026]
[1743754120894,40.2546,118.3,118.29,14.77525026]
[1743754123302,15.3172,118.31,118.29,14.77525026]
[1743754123500,10.7872,118.31,118.29,14.77525026]
[1743754123700,8.4545,118.31,118.29,14.77525026]
[1743754124094,0.05472461,118.32,118.29,14.77525026]
[1743754124903,0.05472461,118.32,118.3,8.454]
[1743754125707,0.05472461,118.32,118.3,23.27860065]
[1743754126204,0.05472461,118.32,118.3,14.82400065]
[1743754126601,0.05472461,118.32,118.29,46.57525026]
[1743754127202,8.4546,118.3,118.29,46.57525026]
[1743754127398,8.4546,118.3,118.29,14.77525026]
[1743754129103,0.05472461,118.32,118.29,14.77525026]
[1743754129904,8.50822461,118.32,118.29,14.77525026]
[1743754131010,0.05472461,118.32,118.29,14.77525026]
[1743754132202,8.4546,118.3,118.29,14.77525026]
[1743754135910,23.28400065,118.3,118.22,14.82400065]
[1743754136117,33.9642,118.29,118.22,14.82400065]
[1743754136508,8.4585,118.25,118.22,23.28400065]
[1743754136905,0.0623457,118.25,118.23,8.4592]
[1743754137211,0.0623457,118.25,118.22,14.88147793]
[1743754137408,0.0623457,118.25,118.23,8.4595]
[1743754137704,0.0623457,118.25,118.22,14.88147793]
[1743754137908,0.0623457,118.25,118.22,23.34157793]
[1743754138510,0.0623457,118.25,118.22,14.88147793]
[1743754139603,8.4588,118.24,118.22,14.88147793]
[1743754140509,8.4596,118.23,118.22,0.05747728]
[1743754142402,0.0623457,118.25,118.22,0.05747728]
[1743754142615,8.4592,118.24,118.22,0.05747728]
[1743754143213,8.4596,118.23,118.22,0.05747728]
[1743754143712,0.0623457,118.25,118.22,0.05747728]
[1743754145217,8.4596,118.23,118.22,0.05747728]
[1743754145416,0.0623457,118.25,118.22,14.88147793]
[1743754145713,8.455,118.3,118.24,14.82400065]
[1743754146019,2.3388,118.33,118.28,14.82400065]
[1743754146209,2.3388,118.33,118.28,46.54400065]
[1743754146411,8.4536,118.32,118.28,46.54400065]
[1743754146617,8.4536,118.32,118.28,54.99970065]
[1743754147015,0.0592619,118.31,118.29,0.05686541]
[1743754147511,0.0592619,118.31,118.3,14.82400065]
[1743754147718,38.575,118.38,118.31,8.4538]
[1743754147917,8.4506,118.36,118.31,40.1938]
[1743754148118,8.4506,118.36,118.31,31.74]
[1743754148318,38.575,118.38,118.31,31.74]
[1743754148518,14.82400065,118.37,118.31,31.74]
[1743754148915,0.06206666,118.35,118.33,0.06364741]
[1743754149215,8.4523,118.34,118.33,0.06364741]
[1743754149414,0.06206666,118.35,118.33,0.06364741]
[1743754149818,8.51356666,118.35,118.33,0.06364741]
[1743754150315,8.4517,118.34,118.33,0.06364741]
[1743754150923,31.78206666,118.35,118.27,31.72]
[1743754151122,31.72,118.35,118.27,31.72]
[1743754151320,8.4531,118.33,118.27,31.72]
[1743754151823,31.72,118.35,118.29,0.05780124]
[1743754152022,0.05513427,118.31,118.29,0.05780124]
[1743754152814,0.05513427,118.31,118.24,40.1385]
[1743754153020,25.95722263,118.31,118.24,40.1385]
[1743754153220,28.25012263,118.31,118.24,40.1385]
[1743754153723,8.4573,118.27,118.24,31.68]
[1743754153923,55.34572263,118.29,118.22,31.66]
[1743754154124,0.05535371,118.27,118.24,0.06229793]
[1743754154319,8.4585,118.25,118.24,0.06229793]
[1743754154523,0.05535371,118.27,118.24,0.06229793]
[1743754154824,8.4579,118.26,118.24,0.06229793]
[1743754155320,486.78,118.32,118.24,0.06229793]
[1743754155321,1.47164545,118.35,118.25,31.66]
[1743754155522,142.13369505,118.39,118.29,23.68572263]
[1743754155722,142.13369505,118.39,118.3,31.66]
[1743754155924,8.4515,118.35,118.3,31.66]
[1743754156427,8.4506,118.36,118.32,8.453]
[1743754156620,0.05464125,118.34,118.33,31.66]
[1743754157626,8.50634125,118.34,118.33,31.66]
[1743754158727,8.50634125,118.34,118.32,4.4152]
[1743754159332,0.05464125,118.34,118.32,4.4152]
[1743754159533,2.2442,118.39,118.32,4.4152]
[1743754159831,31.64,118.41,118.32,4.4152]
[1743754160130,8.45,118.37,118.32,4.4152]
[1743754160331,31.64,118.41,118.32,4.4152]
[1743754160727,0.06437904,118.38,118.35,0.06155595]
[1743754161431,8.4499,118.37,118.35,0.06155595]
[1743754162930,8.51337904,118.38,118.35,0.06155595]
[1743754163132,0.06437904,118.38,118.35,8.51215595]
[1743754163933,0.06437904,118.38,118.35,0.06155595]
[1743754164533,8.4503,118.36,118.35,0.06155595]
[1743754165431,0.06437904,118.38,118.35,0.06155595]
[1743754165833,8.51357904,118.38,118.35,8.51195595]
[1743754166427,0.06437904,118.38,118.36,8.4502]
[1743754167026,8.51327904,118.38,118.35,40.15225595]
[1743754168030,8.51327904,118.38,118.36,8.4503]
[1743754168232,0.06437904,118.38,118.36,8.4503]
[1743754168536,0.06437904,118.38,118.35,55.38727858]
[1743754169234,0.06437904,118.38,118.36,8.4498]
[1743754170033,30.59872263,118.46,118.36,23.68572263]
[1743754170534,31.64,118.45,118.37,8.4493]
[1743754170736,31.64,118.45,118.37,40.0893]
[1743754171232,8.448,118.4,118.37,40.0893]
[1743754171432,0.05534045,118.42,118.38,8.4486]
[1743754171631,0.05534045,118.42,118.37,31.70411395]
[1743754171936,8.4471,118.41,118.37,31.70411395]
[1743754172237,8.4471,118.41,118.38,10.7332]
[1743754172634,0.05534045,118.42,118.38,2.2848]
[1743754172635,8.4474,118.4,118.38,2.2848]
[1743754173234,8.4471,118.41,118.38,10.7336]
[1743754173433,0.05534045,118.42,118.38,2.2848]
[1743754173737,0.05534045,118.42,118.41,8.4467]
[1743754174434,8.4438,118.46,118.4,55.3878386]
[1743754174640,518.18,118.49,118.41,2.1901]
[1743754175538,0.05391738,118.46,118.44,0.05455391]
[1743754175737,8.4439,118.45,118.44,0.05455391]
[1743754178532,0.05391738,118.46,118.44,0.05455391]
[1743754178940,0.05391738,118.46,118.44,8.49865391]
[1743754179243,0.05391738,118.46,118.44,0.05455391]
[1743754180141,0.05391738,118.46,118.44,31.67455391]
[1743754180339,0.05391738,118.46,118.45,8.4439]
[1743754180539,33.7871,118.52,118.44,31.67455391]
[1743754180838,517.94,118.54,118.44,55.30572263]
[1743754181341,8.4393,118.52,118.48,8.4413]
[1743754181639,0.06047901,118.51,118.49,0.05912027]
[1743754182040,8.50007901,118.51,118.49,0.05912027]
[1743754183142,8.4403,118.5,118.49,0.05912027]
[1743754185142,31.68047901,118.51,118.45,31.62]
[1743754185342,2.3045,118.5,118.43,2.1942]
[1743754185741,31.62,118.51,118.44,23.68572263]
[1743754186042,31.62,118.51,118.45,31.6]
[1743754186246,8.4404,118.5,118.47,8.442]
[1743754186539,0.05598051,118.49,118.47,8.50479716]
[1743754187042,8.49698051,118.49,118.47,0.06279716]
[1743754187243,0.05598051,118.49,118.47,0.06279716]
[1743754187640,8.4417,118.48,118.47,0.06279716]
[1743754192247,8.49738051,118.49,118.47,0.06279716]
[1743754192442,0.05598051,118.49,118.47,0.06279716]
[1743754192748,8.4417,118.48,118.47,0.06279716]
[1743754195647,8.49738051,118.49,118.47,0.06279716]
[1743754195848,0.05598051,118.49,118.47,0.06279716]
[1743754196048,8.4417,118.48,118.47,0.06279716]
[1743754199059,8.4417,118.48,118.47,9.716e-05]
[1743754199256,40.0417,118.48,118.47,9.716e-05]
[1743754200061,40.0417,118.48,118.41,16.99557027]
[1743754200062,31.6,118.48,118.39,14.76597027]
[1743754200352,17.13197027,118.47,118.42,8.4455]
[1743754200554,8.4446,118.44,118.42,8.4455]
[1743754200954,8.4446,118.44,118.41,23.21227027]
[1743754201154,8.49822423,118.44,118.42,0.05684041]
[1743754201354,8.49822423,118.44,118.42,8.50274041]
[1743754201554,8.4453,118.43,118.42,0.05684041]
[1743754201752,0.05362423,118.44,118.42,0.05684041]
[1743754201957,0.05362423,118.44,118.43,8.4453]
[1743754202754,31.6,118.48,118.42,46.42281068]
[1743754202755,8.4427,118.47,118.44,8.4442]
[1743754202962,8.4427,118.47,118.42,46.42281068]
[1743754202963,31.6,118.49,118.43,2.2334]
[1743754203162,31.6,118.49,118.43,10.6782]
[1743754203360,31.6,118.49,118.43,2.2334]
[1743754203960,0.05588521,118.47,118.45,0.05504054]
[1743754205064,0.05588521,118.47,118.46,14.76597027]
[1743754205254,2.2332,118.52,118.46,14.76597027]
[1743754205654,8.4411,118.49,118.46,14.76597027]
[1743754205853,2.2332,118.52,118.46,14.76597027]
[1743754206058,46.9214711,118.54,118.46,14.76597027]
[1743754206458,0.05663056,118.51,118.49,0.0534094]
[1743754206865,8.4406,118.5,118.49,0.0534094]
[1743754208454,8.49653056,118.51,118.49,0.0534094]
[1743754208655,0.05663056,118.51,118.49,0.0534094]
[1743754208854,0.05663056,118.51,118.5,14.76597027]
[1743754209066,0.05663056,118.51,118.5,46.36597027]
[1743754209562,8.4371,118.55,118.5,54.80627027]
[1743754209764,8.4371,118.55,118.5,46.36597027]
[1743754209966,8.4371,118.55,118.51,8.4396]
[1743754210168,83.1344711,118.58,118.5,46.36597027]
[1743754210365,51.5344711,118.58,118.52,14.76597027]
[1743754210666,8.4369,118.55,118.52,23.20447027]
[1743754210966,8.4369,118.55,118.54,0.0633047]
[1743754212266,0.0599106,118.56,118.54,0.0633047]
[1743754213468,8.4367,118.55,118.54,0.0633047]
[1743754216361,40.0167,118.55,118.54,4.7e-06]
[1743754217568,8.4367,118.55,118.54,4.7e-06]
[1743754221965,25.54237027,118.55,118.54,4.7e-06]
[1743754222675,10.7764,118.55,118.54,4.7e-06]
[1743754223676,8.4367,118.55,118.54,4.7e-06]
[1743754224473,8.4963106,118.56,118.54,4.7e-06]
[1743754224776,0.0599106,118.56,118.54,4.7e-06]
[1743754224977,8.4367,118.55,118.54,4.7e-06]
[1743754229082,8.4962106,118.56,118.54,4.7e-06]
[1743754229877,8.4367,118.55,118.54,4.7e-06]
[1743754232078,8.4963106,118.56,118.54,4.7e-06]
[1743754232878,0.0599106,118.56,118.54,4.7e-06]
[1743754233480,8.4962106,118.56,118.54,4.7e-06]
[1743754233978,0.0599106,118.56,118.54,4.7e-06]
[1743754234679,8.4963106,118.56,118.54,4.7e-06]
[1743754237383,8.4367,118.55,118.54,4.7e-06]
[1743754238683,40.0762106,118.56,118.54,4.7e-06]
[1743754238882,0.0599106,118.56,118.54,4.7e-06]
[1743754240084,8.4367,118.55,118.54,4.7e-06]
[1743754246089,40.0167,118.55,118.54,4.7e-06]
[1743754249691,49.46316179,118.55,118.54,4.7e-06]
[1743754251186,49.46316179,118.55,118.47,6.6296]
[1743754251187,8.4399,118.5,118.47,6.6296]
[1743754251393,8.4399,118.5,118.47,45.47766179]
[1743754251589,8.4399,118.5,118.47,36.0312]
[1743754251890,8.4399,118.5,118.48,8.4405]
[1743754252090,8.4392,118.51,118.48,9.44646179]
[1743754252482,8.49881102,118.51,118.49,8.4401]
[1743754252686,0.05961102,118.51,118.48,9.50429407]
[1743754252886,0.05961102,118.51,118.5,8.4394]
[1743754253186,0.05961102,118.51,118.49,9.44646179]
[1743754253392,0.05961102,118.51,118.48,9.50429407]
[1743754253895,0.05961102,118.51,118.5,8.4394]
[1743754254897,8.49841102,118.51,118.49,17.88626179]
[1743754255298,0.05961102,118.51,118.48,9.50429407]
[1743754255597,8.4399,118.5,118.48,8.49833228]
[1743754256691,9.50607281,118.51,118.48,0.05783228]
[1743754257291,8.4402,118.49,118.48,0.05783228]
[1743754258397,0.05961102,118.51,118.48,9.50429407]
[1743754258596,0.05961102,118.51,118.49,8.4398]
[1743754258898,8.49871102,118.51,118.49,8.4398]
[1743754259598,0.05961102,118.51,118.49,8.4398]
[1743754259802,0.05961102,118.51,118.5,8.4394]
[1743754259997,0.05961102,118.51,118.5,17.88586179]
[1743754261698,0.05961102,118.51,118.5,9.44646179]
[1743754261892,0.05961102,118.51,118.49,17.88626179]
[1743754262200,0.05961102,118.51,118.48,49.52479407]
[1743754262396,9.50607281,118.51,118.48,8.49833228]
[1743754262597,9.50607281,118.51,118.48,0.05783228]
[1743754262894,0.05961102,118.51,118.48,9.50429407]
[1743754263191,0.05961102,118.51,118.49,8.4397]
[1743754263395,9.50607281,118.51,118.48,0.05783228]
[1743754263695,0.05961102,118.51,118.48,0.05783228]
[1743754264799,0.05961102,118.51,118.49,8.4397]
[1743754264995,0.05961102,118.51,118.48,0.05783228]
[1743754265403,0.05961102,118.51,118.49,8.4401]
[1743754265602,0.05961102,118.51,118.48,0.05783228]
[1743754266496,0.05961102,118.51,118.48,8.49833228]
[1743754266698,0.05961102,118.51,118.48,0.05783228]
[1743754267001,14.76747579,118.5,118.48,0.05783228]
[1743754267803,31.63961102,118.51,118.48,0.05783228]
[1743754268302,31.63961102,118.51,118.48,8.49823228]
[1743754269903,31.63961102,118.51,118.49,8.44]
[1743754270200,31.63961102,118.51,118.48,0.05783228]
[1743754271103,0.05961102,118.51,118.48,0.05783228]
[1743754271404,0.05961102,118.51,118.48,14.82530807]
[1743754271599,0.05961102,118.51,118.5,8.4394]
[1743754272603,0.05961102,118.51,118.5,40.0194]
[1743754272802,6.9397,118.57,118.54,8.4365]
[1743754273003,2.2917,118.57,118.54,8.4365]
[1743754273405,2.2917,118.57,118.51,4.5654]
[1743754273605,60.35714356,118.6,118.52,14.76747579]
[1743754273805,14.00966777,118.6,118.53,31.58]
[1743754274004,0.0540688,118.57,118.56,8.4348]
[1743754275807,0.0540688,118.57,118.56,23.20227579]
[1743754276110,11.73036777,118.6,118.56,46.34747579]
[1743754276309,11.73036777,118.6,118.56,48.60767579]
[1743754276501,40.0095,118.64,118.6,8.4318]
[1743754276699,8.4295,118.64,118.56,48.60767579]
[1743754277102,0.05532546,118.61,118.59,0.05754037]
[1743754277302,0.05532546,118.61,118.6,8.432]
[1743754277710,0.05532546,118.61,118.59,0.05754037]
[1743754278510,0.05532546,118.61,118.6,8.4323]
[1743754279210,0.05532546,118.61,118.59,0.05754037]
[1743754279211,0.05532546,118.61,118.59,8.49024037]
[1743754279811,0.05532546,118.61,118.59,0.05754037]
[1743754281111,0.05532546,118.61,118.6,8.4323]
[1743754281312,0.05532546,118.61,118.59,0.05754037]
[1743754282714,8.4323,118.6,118.59,0.05754037]
[1743754283017,14.82280125,118.61,118.53,31.56]
[1743754283318,8.435,118.57,118.54,8.4362]
[1743754283713,31.56,118.59,118.53,31.56]
[1743754284015,0.05561962,118.57,118.55,0.05524768]
[1743754284419,0.05561962,118.57,118.56,8.4352]
[1743754285827,0.05561962,118.57,118.56,54.76267579]
[1743754289722,10.5875,118.62,118.6,8.4322]
[1743754290123,8.4318,118.61,118.56,50.80457579]
[1743754290337,8.4318,118.61,118.58,8.4332]
[1743754290624,8.4318,118.61,118.56,50.80457579]
[1743754290821,0.06156654,118.61,118.59,8.4326]
[1743754291127,0.06156654,118.61,118.58,0.05796848]
[1743754291520,0.06156654,118.61,118.59,8.4325]
[1743754291724,0.06156654,118.61,118.58,0.05796848]
[1743754292028,0.06156654,118.61,118.59,8.4325]
[1743754292326,0.06156654,118.61,118.58,0.05796848]
[1743754292327,8.49326654,118.61,118.58,0.05796848]
[1743754292521,0.06156654,118.61,118.58,8.49136848]
[1743754292822,8.433,118.59,118.58,0.05796848]
[1743754293625,0.06156654,118.61,118.58,0.05796848]
[1743754294124,0.06156654,118.61,118.6,8.4323]
[1743754294328,0.06156654,118.61,118.58,14.82544427]
[1743754294535,8.49366654,118.61,118.59,8.4327]
[1743754294730,0.06156654,118.61,118.58,14.82544427]
[1743754295026,8.4326,118.6,118.58,8.49126848]
[1743754295725,8.4326,118.6,118.58,0.05796848]
[1743754296734,8.4326,118.6,118.58,8.49146848]
[1743754297934,0.06156654,118.61,118.58,0.05796848]
[1743754298534,8.433,118.59,118.58,0.05796848]
[1743754299035,0.06156654,118.61,118.58,0.05796848]
[1743754299225,0.06156654,118.61,118.58,14.82544427]
[1743754299629,0.06156654,118.61,118.59,8.4326]
[1743754299829,0.06156654,118.61,118.58,46.36544427]
[1743754300236,8.4328,118.6,118.58,54.79884427]
[1743754300436,8.4328,118.6,118.58,46.36544427]
[1743754300639,0.06156654,118.61,118.58,46.36544427]
[1743754300834,0.06156654,118.61,118.59,8.4327]
[1743754301537,0.06156654,118.61,118.58,54.79884427]
[1743754301837,8.4327,118.6,118.58,54.79884427]
[1743754302038,0.06156654,118.61,118.59,8.4329]
[1743754302637,0.06156654,118.61,118.58,46.36544427]
[1743754302841,0.06156654,118.61,118.6,8.4323]
[1743754303835,0.06156654,118.61,118.59,8.4327]
[1743754304734,8.49346654,118.61,118.59,8.4327]
[1743754305039,0.06156654,118.61,118.58,31.59796848]
[1743754305238,0.06156654,118.61,118.58,0.05796848]
[1743754306241,8.49316654,118.61,118.58,0.05796848]
[1743754306638,8.49316654,118.61,118.58,8.49116848]
[1743754307341,8.49316654,118.61,118.59,8.433]
[1743754307639,8.49316654,118.61,118.58,0.05796848]
[1743754307938,0.06156654,118.61,118.58,0.05796848]
[1743754308541,8.49356654,118.61,118.59,8.4329]
[1743754309641,8.49356654,118.61,118.58,8.49126848]
[1743754309842,8.4325,118.6,118.58,8.49126848]
[1743754310232,8.433,118.59,118.58,0.05796848]
[1743754310439,0.06156654,118.61,118.58,0.05796848]
[1743754310841,8.4327,118.6,118.58,0.05796848]
[1743754311240,0.06156654,118.61,118.58,0.05796848]
[1743754311443,8.4323,118.6,118.58,0.05796848]
[1743754311643,8.4323,118.6,118.58,8.49156848]
[1743754312143,8.433,118.59,118.58,0.05796848]
[1743754312943,8.4327,118.6,118.58,0.05796848]
[1743754313340,0.06156654,118.61,118.58,0.05796848]
[1743754313540,8.433,118.59,118.58,0.05796848]
[1743754314144,8.4328,118.6,118.58,0.05796848]
[1743754314746,8.433,118.59,118.58,0.05796848]
[1743754315245,0.06156654,118.61,118.58,0.05796848]
[1743754315444,8.433,118.59,118.58,0.05796848]
[1743754319249,17.8670913,118.59,118.58,0.05796848]
[1743754321049,40.9740913,118.59,118.53,9.4340913]
[1743754321250,9.4340913,118.57,118.52,9.4340913]
[1743754321450,8.4372,118.54,118.52,9.4340913]
[1743754321651,9.4340913,118.57,118.52,9.4340913]
[1743754321847,9.4340913,118.56,118.51,9.4340913]
[1743754322157,0.05641312,118.55,118.52,0.05536221]
[1743754322851,8.4378,118.53,118.52,0.05536221]
[1743754323051,0.05641312,118.55,118.52,9.48945351]
[1743754323251,0.05641312,118.55,118.53,9.4340913]
[1743754323649,8.49241312,118.55,118.53,17.8709913]
[1743754323855,0.05641312,118.55,118.53,9.4340913]
[1743754324260,8.49271312,118.55,118.53,9.4340913]
[1743754324555,0.05641312,118.55,118.53,9.4340913]
[1743754324756,8.49261312,118.55,118.53,17.8713913]
[1743754325056,0.05641312,118.55,118.53,9.4340913]
[1743754325252,8.4373,118.53,118.52,9.48945351]
[1743754325654,8.4373,118.53,118.52,0.05536221]
[1743754325849,0.05641312,118.55,118.52,0.05536221]
[1743754326054,0.05641312,118.55,118.52,14.80874196]
[1743754326357,8.49261312,118.55,118.53,8.4368]
[1743754327356,4.3931,118.61,118.54,14.75337975]
[1743754327555,35.9331,118.61,118.54,14.75337975]
[1743754327756,8.4338,118.58,118.56,8.4348]
[1743754328259,2.1721,118.61,118.55,8.4355]
[1743754328459,16.92547975,118.61,118.53,35.9995]
[1743754328659,14.81750457,118.59,118.57,8.84e-05]
[1743754328865,33.8214,118.58,118.57,8.84e-05]
[1743754329055,42.2551,118.58,118.57,8.84e-05]
[1743754330454,42.2614,118.58,118.42,35.30524768]
[1743754330664,14.75337975,118.54,118.46,14.75337975]
[1743754330855,46.29337975,118.54,118.48,8.4405]
[1743754331056,31.54,118.54,118.48,8.4405]
[1743754331659,0.06080747,118.52,118.5,0.06163453]
[1743754332560,8.4387,118.51,118.5,0.06163453]
[1743754339362,8.442,118.47,118.45,1.68847615]
[1743754339665,46.29337975,118.5,118.45,1.68847615]
[1743754340066,46.29337975,118.5,118.45,10.13147615]
[1743754340465,8.4416,118.47,118.45,10.13147615]
[1743754340764,8.4416,118.47,118.46,0.06278901]
[1743754340956,8.4412,118.48,118.46,0.06278901]
[1743754342267,8.4416,118.47,118.46,0.06278901]
[1743754342567,0.05358653,118.49,118.46,0.06278901]
[1743754342965,8.49388653,118.49,118.46,8.50448901]
[1743754343367,0.05358653,118.49,118.46,0.06278901]
[1743754343568,0.05358653,118.49,118.46,8.50468901]
[1743754344368,0.05358653,118.49,118.46,46.35616876]
[1743754344661,0.05358653,118.49,118.46,48.49756876]
[1743754345964,0.05358653,118.49,118.48,8.4409]
[1743754348472,31.54,118.53,118.51,8.4386]
[1743754348673,14.75337975,118.54,118.51,8.4386]
[1743754348866,33.8149,118.55,118.46,48.43477975]
[1743754349069,8.4366,118.54,118.5,8.439]
[1743754349875,0.05576399,118.53,118.51,0.058858]
[1743754350271,8.49316399,118.53,118.51,0.058858]
[1743754350969,0.05576399,118.53,118.51,0.058858]
[1743754352074,8.49336399,118.53,118.51,0.058858]
[1743754352271,0.05576399,118.53,118.51,0.058858]
[1743754352471,8.49326399,118.53,118.51,0.058858]
[1743754353671,0.05576399,118.53,118.51,0.058858]
[1743754354280,8.438,118.52,118.51,0.058858]
[1743754357779,17.88842098,118.52,118.51,0.058858]
[1743754357985,9.45042098,118.52,118.51,0.058858]
[1743754358178,0.05576399,118.53,118.52,8.438]
[1743754359782,0.05576399,118.53,118.51,0.058858]
[1743754360183,8.49346399,118.53,118.51,0.058858]
[1743754361389,0.05576399,118.53,118.51,0.058858]
[1743754362190,8.49376399,118.53,118.51,0.058858]
[1743754362489,8.438,118.52,118.51,0.058858]
[1743754366288,23.25308642,118.53,118.51,0.058858]
[1743754366483,14.81528642,118.53,118.51,0.058858]
[1743754366891,8.438,118.52,118.51,0.058858]
[1743754367583,8.49346399,118.53,118.51,0.058858]
[1743754367889,0.05576399,118.53,118.51,8.497358]
[1743754368387,0.05576399,118.53,118.51,0.058858]
[1743754369491,0.05576399,118.53,118.52,8.438]
[1743754369791,0.05576399,118.53,118.51,0.058858]
[1743754369992,8.49306399,118.53,118.51,8.497158]
[1743754370191,0.05576399,118.53,118.51,8.497158]
[1743754370889,0.05576399,118.53,118.52,8.438]
[1743754373493,8.49336399,118.53,118.51,8.497258]
[1743754373793,0.05576399,118.53,118.51,0.058858]
[1743754374592,0.05576399,118.53,118.52,8.438]
[1743754379288,0.05576399,118.53,118.52,39.958]
[1743754379492,0.05576399,118.53,118.52,44.4677]
[1743754381700,0.05576399,118.53,118.52,53.90693216]
[1743754382596,31.52,118.59,118.56,8.4349]
[1743754382795,17.87203216,118.6,118.52,36.0297]
[1743754383001,9.43923216,118.62,118.58,9.43923216]
[1743754383192,11.76233216,118.63,118.58,9.43923216]
[1743754383396,17.86983216,118.63,118.59,9.43923216]
[1743754383695,9.43923216,118.62,118.58,9.43923216]
[1743754383904,9.49431333,118.62,118.6,0.05690066]
[1743754384102,8.4318,118.61,118.6,0.05690066]
[1743754384805,49.39103216,118.61,118.6,0.05690066]
[1743754385000,40.95923216,118.61,118.54,9.43923216]
[1743754385197,9.43923216,118.58,118.54,9.43923216]
[1743754385504,8.4355,118.56,118.53,20.04773216]
[1743754385698,14.7499178,118.59,118.53,2.1713]
[1743754385894,8.4363,118.55,118.52,31.52]
[1743754386099,0.05632598,118.57,118.51,14.7499178]
[1743754386305,31.52,118.58,118.52,0.06107321]
[1743754386500,8.437,118.54,118.52,0.06107321]
[1743754386802,0.06241456,118.55,118.52,0.06107321]
[1743754387308,8.49861456,118.55,118.52,8.49867321]
[1743754387903,0.06241456,118.55,118.52,0.06107321]
[1743754388098,0.06241456,118.55,118.53,14.7499178]
[1743754388498,0.06241456,118.55,118.54,8.4366]
[1743754389702,8.4342,118.58,118.53,46.2699178]
[1743754389899,36.0355,118.61,118.54,2.2138]
[1743754390094,36.0355,118.61,118.55,14.7499178]
[1743754390404,8.4336,118.59,118.56,8.4349]
[1743754390804,36.0355,118.61,118.56,8.4349]
[1743754391005,8.434,118.58,118.56,0.06373109]
[1743754391205,0.06241193,118.59,118.56,0.06373109]